Cogmind - Beta 13 @@@ ROGUE MODE // 2024.07.17 @ 19:13:42 Player: Venar246 Result: Destroyed by G-34 Mercenary with Small Laser Performance ------------- Evolutions (1) 500 Regions Visited (3) 600 Robots Destroyed (41) 205 Value Destroyed (992) 992 Prototype IDs (4) 80 Alien Tech Used (0) 0 Bonus (35) 35 TOTAL SCORE: 2412 Bonus ------- Follower Combat Kills 35 Cogmind --------- Core Integrity 0/400 Matter 265/300 Energy 99/100 System Corruption 0% Temperature Cool (6) Movement Core (700) Ox13 Location -9/Materials Parts ------- > --- POWER (1) -------- (None) > --- PROPULSION (3) --- (None) > --- UTILITY (3) ------ High-capacity Storage Unit Hacking Suite > --- WEAPON (2) ------- Hammer > --- INVENTORY (20) --- Light Ion Engine Light Nuclear Core Terrain Scanner EM Pulse Gun Assault Rifle Assault Rifle Light Cannon Light Cannon Grenade Launcher Mini Grenade Launcher Peak State ------------ > --- POWER ------------ Light Ion Engine > --- PROPULSION ------- Aluminum Leg Aluminum Leg Aluminum Leg > --- UTILITY ---------- High-capacity Storage Unit Hacking Suite > --- WEAPON ----------- Light Cannon Mini Grenade Launcher > --- INVENTORY -------- Light Ion Engine Light Nuclear Core Aluminum Leg Terrain Scanner EM Pulse Gun Assault Rifle Assault Rifle Light Cannon Light Cannon Light Cannon Grenade Launcher Rocket Launcher Hammer [Rating: 12] Favorites ----------- Power Light Ion Engine Engine Light Ion Engine Propulsion Aluminum Leg Leg Aluminum Leg Utility High-capacity Storage Unit Storage High-capacity Storage Unit Hackware Hacking Suite Weapon Light Cannon Energy Gun EM Pulse Gun Ballistic Gun Assault Rifle Ballistic Cannon Light Cannon Launcher Rocket Launcher Impact Weapon Hammer Build | -11 -10 -10 -9 ------- Run | Yrd Mat Min Mat Slots Evolved 2 | . . . 2 Power . | . . . . Propulsion 1 | . . . 1 Utility 1 | . . . 1 Weapon . | . . . . Parts Attached 31 | 6 13 1 11 Power 3 | 1 1 1 . Engine 3 | 1 1 1 . Core . | . . . . Reactor . | . . . . Propulsion 9 | 2 4 . 3 Treads . | . . . . Leg 9 | 2 4 . 3 Wheel . | . . . . Hover . | . . . . Flight . | . . . . Utility 6 | 1 4 . 1 Device . | . . . . Storage 5 | 1 4 . . Processor . | . . . . Hackware 1 | . . . 1 Protection . | . . . . Artifact . | . . . . Weapon 13 | 2 4 . 7 Energy Gun 2 | 1 . . 1 Energy Cannon . | . . . . Ballistic Gun 4 | 1 1 . 2 Ballistic Cannon 4 | . 3 . 1 Launcher 2 | . . . 2 Special Weapon . | . . . . Impact Weapon 1 | . . . 1 Slashing Weapon . | . . . . Piercing Weapon . | . . . . Special Melee Weapon . | . . . . Unidentified Prototypes . | . . . . Parts Lost 11 | . 2 . 9 Power 2 | . 1 . 1 Propulsion 6 | . 1 . 5 Utility . | . . . . Weapon 3 | . . . 3 Highest Loss Streak 7 | . 2 . 7 To Critical Strikes . | . . . . Average Slot Usage (%) 83 | . 83 85 73 Engine 13 | . 13 14 8 Leg 27 | . 27 28 24 Storage 13 | . 14 14 11 Hackware 1 | . . . 10 Ballistic Gun 5 | . 8 . 5 Ballistic Cannon 20 | . 19 28 8 Naked Turns . | . . . . Heaviest Build 49 | 14 49 49 49 Greatest Support 30 | 20 20 20 30 Greatest Overweight (x) 13 | 3 2 2 13 Average Overweight (x) 1 | . 1 2 1 Largest Inventory Capacity 25 | 8 25 20 20 Average Capacity 17 | 7 15 20 20 Most Carried 14 | 2 11 14 13 Average Carried 9 | . 8 12 11 Final Capacity 20 | 8 20 20 20 Final Carried 14 | 2 11 14 10 Class Distribution -------------------- 92% | Mutant 7% | Scavenger-Mutant Dominant Class ---------------- Mutant | -10/Materials Mutant | -10/Mines Scavenger-Mutant | -9/Materials Resources | -11 -10 -10 -9 ----------- Run | Yrd Mat Min Mat Matter Collected 1056 | 156 651 68 181 Remotely . | . . . . Salvage Created 1149 | . 703 189 257 Parts 86 | . 46 19 21 Haulers Intercepted 3 | . 2 . 1 Recyclers Shooed 1 | . . . 1 Parts Field Recycled . | . . . . Retrieved Matter . | . . . . Parts Self-Destructed . | . . . . Prevented . | . . . . Kills | -11 -10 -10 -9 ------- Run | Yrd Mat Min Mat Combat Hostiles Destroyed 30 | . 15 8 7 Melee 2 | . . . 2 Guns 6 | . 5 . 1 Cannons 20 | . 10 8 2 AOE 1 | . . . 1 Classes Destroyed 8 | . 8 . . Worker 2 | . 2 . . Builder 2 | . 1 . 1 Hauler 3 | . 2 . 1 Recycler 1 | . 1 . . Operator 1 | . 1 . . Watcher 2 | . 2 . . Swarmer 8 | . 3 3 2 Grunt 22 | . 12 5 5 Best Kill Streak 5 | . 5 3 3 Combat Bots Only 3 | . 3 3 2 Max Kills in Single Turn 2 | . 1 1 2 Gunslinging . | . . . . Exploded 1 | . . . 1 Melee 1 | . . . 1 Uniques/NPCs Destroyed . | . . . . Combat | -11 -10 -10 -9 -------- Run | Yrd Mat Min Mat Hostile Shots Fired 197 | . 77 27 93 Missed 41 | . 18 8 15 Damage Taken 1877 | . 664 170 1043 Core 551 | . 128 21 402 Absorbed by Shields . | . . . . Core Remaining (%) 70 | 100 . 40 . Volleys Fired 92 | . 62 18 12 Largest 2 | . 2 2 2 Hottest 70 | . 70 70 70 Shots Fired 183 | . 124 36 23 Gun 65 | . 52 . 13 Cannon 116 | . 72 36 8 Launcher 2 | . . . 2 Special . | . . . . Kinetic 181 | . 124 36 21 Thermal . | . . . . Explosive 2 | . . . 2 Electromagnetic . | . . . . Robot Hit Streak 11 | . 11 6 2 Robot Miss Streak 5 | . 3 4 5 Penetration Max . | . . . . Secondary Targets 2 | . 2 . . Max Gunslinging Chain 1 | . 1 . . Shots Hit Robots 117 | . 80 19 18 Core Hits 53 | 2 30 9 12 Critical Kills 2 | . . . 2 Critical Parts Destroyed 2 | . . . 2 Critical Strikes 5 | . 1 . 4 Blast 1 | . 1 . . Smash 4 | . . . 4 Melee Attacks 15 | . . . 15 Impact 15 | . . . 15 Slashing . | . . . . Piercing . | . . . . Sneak Attacks 1 | . . . 1 Combat Hostiles . | . . . . Follow-up Attacks . | . . . . Damage Inflicted 2214 | 7 1319 354 534 Guns 466 | . 437 . 29 Cannons 1276 | . 870 349 57 Explosions 169 | . . . 169 Melee 279 | . . . 279 Ramming 24 | 7 12 5 . Kinetic 1742 | . 1307 349 86 Thermal . | . . . . Explosive 169 | . . . 169 Electromagnetic . | . . . . Impact 279 | . . . 279 Slashing . | . . . . Piercing . | . . . . Highest Corruption . | . . . . Average Corruption . | . . . . Corruption Purged . | . . . . Corruption Blocked . | . . . . Overload Shots . | . . . . Overflow Damage 43 | . . . 43 Projectiles . | . . . . Explosions . | . . . . Melee 43 | . . . 43 Knockbacks 10 | . 8 2 . Impact . | . . . . Kinetic 8 | . 6 2 . Secondary 2 | . 2 . . Self-Inflicted Damage 20 | . . . 20 Shots 1 | . . . 1 Rammed . | . . . . Targets Rammed 7 | 2 3 1 1 Kicked 7 | 2 3 1 1 Crushed . | . . . . Highest Temperature 126 | . 126 69 28 Average Temperature 37 | . 43 26 12 Received Heat Transfer 816 | . 318 45 453 Siege Activations . | . . . . Robots Corrupted . | . . . . Combat Hostiles . | . . . . Parts Fried . | . . . . Impact Corruptions 2 | . . . 2 Robots Melted . | . . . . Combat Hostiles . | . . . . Parts Melted . | . . . . Heat Transferred . | . . . . Parts Sabotaged . | . . . . Parts Stolen . | . . . . Parts Stripped . | . . . . Power Chain Reactions . | . . . . Alert | -11 -10 -10 -9 ------- Run | Yrd Mat Min Mat Peak Influence 323 | . 257 85 323 Initial 27 | . . . 27 Average 88 | . 96 38 178 Maximum Alert Level 1 | . 1 . 1 Low Security (%) 88 | 100 92 100 38 Level 1 11 | . 7 . 61 Level 2 . | . . . . Level 3 . | . . . . Level 4 . | . . . . Level 5 . | . . . . High Security . | . . . . Max Security . | . . . . Squads Dispatched 4 | . 3 1 . Investigation 3 | . 2 1 . Extermination . | . . . . Reinforcement 1 | . 1 . . Assault . | . . . . Garrison . | . . . . Intercept . | . . . . Searches Triggered . | . . . . Construction Impeded . | . . . . Haulers Reinforced . | . . . . Active Scanning Responses . | . . . . Cargo Convoy Interrupts . | . . . . Stealth | -11 -10 -10 -9 --------- Run | Yrd Mat Min Mat Distress Signals . | . . . . Communications Jammed . | . . . . Distress Signals . | . . . . Times Spotted 50 | . 24 8 18 Peak Tracking Total 10 | . 4 2 10 Tactical Retreats 3 | . . 1 2 Traps | -11 -10 -10 -9 ------- Run | Yrd Mat Min Mat Traps Triggered 3 | . 3 . . Indirectly . | . . . . Trap Hack Attempts . | . . . . Triggered . | . . . . Disarmed . | . . . . Reprogrammed . | . . . . Reused . | . . . . Traps Extracted . | . . . . Installed . | . . . . Triggered . | . . . . Machines | -11 -10 -10 -9 ---------- Run | Yrd Mat Min Mat Machines Disabled 4 | . 1 . 3 Max in Single Turn 1 | . 1 . 1 Machines Repaired . | . . . . Machines Dismantled . | . . . . Machines Sabotaged . | . . . . Overloaded Fab Kills . | . . . . Hacking | -11 -10 -10 -9 --------- Run | Yrd Mat Min Mat Machines Accessed 6 | . 4 1 1 Terminals 6 | . 4 1 1 Fabricators . | . . . . Repair Stations . | . . . . Recycling Units . | . . . . Scanalyzers . | . . . . Garrison Access . | . . . . Total Hacks 18 | . 11 3 4 Successful 7 | . 7 . . Failed 11 | . 4 3 4 Catastrophic 3 | . 1 1 1 Database Lockouts . | . . . . Manual 17 | . 10 3 4 Terminals 18 | . 11 3 4 Fabricators . | . . . . Repair Stations . | . . . . Recycling Units . | . . . . Scanalyzers . | . . . . Garrison Access . | . . . . Terminal Hacks 7 | . 7 . . Part Schematic 1 | . 1 . . Robot Analysis 2 | . 2 . . Prototype ID Bank 2 | . 2 . . Locate Traps 1 | . 1 . . Hauler Manifests 1 | . 1 . . Fabricator Hacks . | . . . . Repair Station Hacks . | . . . . Recycling Unit Hacks . | . . . . Scanalyzer . | . . . . Garrison Access Hacks . | . . . . Unauthorized Hacks . | . . . . Terminals . | . . . . Fabricators . | . . . . Repair Stations . | . . . . Recycling Units . | . . . . Scanalyzers . | . . . . Garrison Access . | . . . . Data Cores Recovered . | . . . . Used . | . . . . Hacking Detections 6 | . 4 1 1 Full Trace Events 3 | . 1 1 1 Feedback Events . | . . . . Feedback Blocked . | . . . . Robot Schematics Acquired . | . . . . Robots Built . | . . . . Authchips . | . . . . Time . | . . . . Total Robot Build Rating . | . . . . Part Schematics Acquired 1 | . 1 . . Parts Built . | . . . . Authchips . | . . . . Time . | . . . . Total Part Build Rating . | . . . . Parts Repaired . | . . . . Time . | . . . . Parts Recycled . | . . . . Recycled Matter . | . . . . Retrieved Matter . | . . . . Retrieved Components . | . . . . Parts Scanalyzed . | . . . . Part Schematics Acquired . | . . . . Parts Damaged . | . . . . Bothacking | -11 -10 -10 -9 ------------ Run | Yrd Mat Min Mat Used RIF Installer . | . . . . Robots Hacked . | . . . . Non-combat . | . . . . Combat . | . . . . Robot Hacks Applied . | . . . . Relay Couplers Released . | . . . . Fabnet Peak Effective % . | . . . . Robots Rewired . | . . . . Allies Hacked . | . . . . Hacks Repelled . | . . . . Allies | -11 -10 -10 -9 -------- Run | Yrd Mat Min Mat Total Allies 3 | . . 3 . Largest Group 3 | . . 3 3 Highest-Rated Group 40 | . . 40 40 Highest-Rated Ally 16 | . . 16 16 Total Orders . | . . . . Ally Attacks 5 | . . . 5 Total Damage 1136 | . . . 1136 Kills 8 | . . . 8 Allies Corrupted . | . . . . Allies Melted . | . . . . Intel | -11 -10 -10 -9 ------- Run | Yrd Mat Min Mat Robot Analysis Total 2 | . 2 . . Derelict Logs Recovered 1 | . . 1 . Drone Launches . | . . . . Drone Recoveries . | . . . . Exploration | -11 -10 -10 -9 ------------- Run | Yrd Mat Min Mat Turns Passed 3980 | 65 2443 1060 412 Spaces Moved 1657 | 44 1096 384 133 Core 17 | 9 . . 8 Treads . | . . . . Legs 1640 | 35 1096 384 125 Wheels . | . . . . Hover . | . . . . Flight . | . . . . Fastest Speed 50 | 50 120 260 190 Average Speed 213 | 119 199 260 226 Slowest Speed 700 | 200 260 260 700 Overloaded Moves . | . . . . Propulsion Burnouts . | . . . . Robots Hopped . | . . . . Cave-ins Triggered . | . . . . Exploration Rate (%) 47 | 3 90 79 18 Regions Visited 3 Branch Regions 1 Pre-discovered Areas . | . . . . Known Exits Taken . | . . . . Unknown Exits Taken 3 | 1 1 1 . Scrap Searched . | . . . . Spaces Dug . | . . . . Terrain Destroyed 7 | . . . 7 Melee . | . . . . Projectile . | . . . . AOE 7 | . . . 7 Terrain Rammed . | . . . . Walls Destroyed . | . . . . Machines Disabled . | . . . . Actions | -11 -10 -10 -9 --------- Run | Yrd Mat Min Mat Total 1888 | 53 1225 409 201 Wait 64 | . 35 4 25 Move 1654 | 43 1095 383 133 Hop . | . . . . Pick Up 15 | 2 10 2 1 Fast Attach 15 | 6 5 . 4 Attach 8 | . 3 . 5 Detach 3 | . 3 . . Swap 8 | . 5 1 2 Drop 7 | . 4 . 3 Fire 92 | . 62 18 12 Melee 15 | . . . 15 Ram . | . . . . Kick 7 | 2 3 1 1 Crush . | . . . . Escape Stasis . | . . . . Rewire . | . . . . Trap . | . . . . Miscellaneous . | . . . . Route ------- -11/Scrapyard -10/Materials (discovered 3 exits: *Mat x2 / *Min) -10/Mines -9/Materials (discovered 1 exit: [*Min]) History --------- Turn | Location | Event 22 | -11/Scrapyard | Discovered new exit (range 16) 66 | -11/Scrapyard | Entered Materials 303 | -10/Materials | Build established: Mutant 1050 | -10/Materials | Discovered new exit (range 13) 1092 | -10/Materials | Discovered new exit (range 16) 1129 | -10/Materials | Core integrity fell below 50% 1576 | -10/Materials | Discovered new exit (range 14) 2509 | -10/Materials | Entered Mines 2600 | -10/Mines | Received a Rocket Launcher from a helpful Derelict 3123 | -10/Mines | Found a hidden stash of uninstalled traps 3504 | -10/Mines | Discovered new exit (range 7) 3543 | -10/Mines | Assisted by bots powering up and referring to "LRC-V3" 3569 | -10/Mines | Entered Materials 3569 | -9/Materials | Accompanied by 3 allies 3569 | -9/Materials | Evolved 2 slots: Propulsion x1, Utility x1 3745 | -9/Materials | Lost 3 allies 3799 | -9/Materials | Discovered new exit (range 7) 3920 | -9/Materials | Core integrity fell below 50% 3939 | -9/Materials | Lost 7 parts (1p3n3w) 3952 | -9/Materials | Core integrity fell below 20% 3981 | -9/Materials | Destroyed by G-34 Mercenary with Small Laser Last Messages --------------- 03915_ U-05 Engineer lays Concrete. 03917_ K-01 Serf collects debris. 03918_ U-05 Engineer lays Concrete. 03918_ K-01 Serf cleans the Terminal. 03919_ K-01 Serf collects debris. 03921_ K-01 Serf cleans the Terminal. 03925_ K-01 Serf collects debris. 03928_ R-06 Scavenger collects Sml. Laser. 03930_ K-01 Serf collects debris. 03940_ G-34 Mercenary suffers critical hit (Smash). 03940_ Destroyed Ion Engine. 03940_ G-34 Mercenary system corrupted by crushing effect. 03941_ G-34 Mercenary system terminally corrupted. 03942_ K-01 Serf collects debris. 03943_ Sneak attack on R-06 Scavenger. 03945_ K-01 Serf collects debris. 03953_ K-01 Serf cleans the Terminal. Map ----- +----------------------------------------------------+ | ??????????????????????????????????????????????#### | | ??????????????????????????????????????????????# | | ??????????????????????????????????????????????# | | ??????????????????????????????????????????????# | | ??????????????????????????????????????????????# | | ??????????????????????????????????????????????# | | ??????????????????????????????????????????????# | | ??????????????????????????????????????????????# | | ??????????????????????????????????????????????# | | ??????????????????????????????????????????????# | | ??????????????????????????????????????????????#### | | ?????????????????????????????# ????????????????# | | ?????????????????????????????? ???????????????# | | ?????????????????????????????? ###+########### | | ??????????????????????????????? """ | | ???????????????????????????????? ^ "Y" | | ?????????????????????????????????? | | ????????????????????????????????????# """ | | ????????????????????????????????????# """ | | ????????????????????????????????????# """ | | ????????????????????????????######### ] | | ????????????????????????? ! | | ????????????????????????? = | | ????????????????????????? = ! | | ??????????????????##+######### #### * = | | ??????????????????# g //@ ## [[[= [[ | | ??????????????????# "" ///[##= %[%[! | | ?????????????# + "T ///%+%[ =[[[ | | ?????????????? # "" ##! = ##### | | ??????????????????# = ## # ### | | ??????????????????############## "" """ ###?? | | ???????????????????????# # """ """ = #???? | | ?????????????????? "%" """ """=%*#???? | | ?????????????????? " < [%#???? | | ???????????????????"" #???? | | ????????????????????" # # +???? | | ???????????????????????# "|"|" # #???? | | ???????????????????????#""|"|""# [! !! #???? | | ???????????????????????######### != ! ???? | | ??????????????????????????????? ??? | | ??????????????????????????????? ???? | | ??????????????????????????????? ##+###???? | | ??????????????????????????????? #?? ?????? | | ?????????????????????????????? #??? ????? | | ?????????????????????????????? ^ #????????? | | ??????????????????????????????####### #????????? | | ????????????????????????????????????? ???????????? | | ?????????????????????????????????????????????????? | | ?????????????????????????????????????????????????? | | ?????????????????????????????????????????????????? | +----------------------------------------------------+ Best States ------------- Heat Dissipation 28 Energy Generation 10 Energy Capacity 250 Matter Stores 300 Matter Capacity 300 Sight Range 16 Terrain Scan Density 10 Evasion (%) 55 Offensive Hacking 10 Item Schematics ----------------- Hammer | -10/Materials | Hacked Robot Schematics ------------------ None Fabricated ------------ Nothing Alien Tech Used ----------------- None Achievements -------------- None Challenges ------------ None Game ------ Seed MobileThrowingProtomatter Manual? 0 Play Time 00:15:26 Cumulative 24.0 hours Start 2024.07.17 @ 18:50:31 End 2024.07.17 @ 19:13:42 Sessions 1 Manual Loads 0 Difficulty Rogue Special Mode None Game No. 47 Rogue 47 Adventurer 0 Explorer 0 Win Type - Total 0 Types 0/0/0/0/0/0/0/0/0 Lore% 24 Gallery% 31 Achievement% 26 Wizard Run 0 Options --------- Layout 1 ASCII 0 Keyboard 0 Movement Arrows Keybinds 0 Fullscreen 1 Font 32/SmallcapsGlow Map View 50x35 Zoom Use 0% Tactical HUD 1 Map Filters NONE Filters NONE Steam 1 RUN: 0acfe4bb-1025-4dfa-8999-181229902905